bitfinex/quotes_BTCUSD_20241111
["timestamp","ask_amount","ask_price","bid_price","bid_amount"]
[1731353940100,0.0008501,86513.0,86485.0,0.37874169]
[1731353940101,0.17441501,86513.0,86505.0,0.005]
[1731353940308,0.17441501,86513.0,86512.0,0.11994075]
[1731353940781,0.0008501,86513.0,86512.0,0.11994075]
[1731353940985,0.0008501,86513.0,86512.0,0.1222521]
[1731353941199,0.0008501,86513.0,86512.0,0.1272521]
[1731353941417,0.0008501,86513.0,86512.0,0.12494075]
[1731353942293,0.0008501,86513.0,86512.0,0.11994075]
[1731353943290,0.0007901,86513.0,86512.0,0.11994075]
[1731353943580,0.0007901,86513.0,86486.0,0.25856491]
[1731353943742,0.0007301,86513.0,86498.0,0.17356491]
[1731353943938,0.17356491,86512.0,86499.0,0.11994075]
[1731353944146,0.0007301,86513.0,86499.0,0.11994075]
[1731353944147,0.0006701,86513.0,86499.0,0.11994075]
[1731353944351,0.01363202,86513.0,86486.0,0.17356491]
[1731353944549,0.0006701,86513.0,86495.0,0.17356491]
[1731353944699,0.0006101,86513.0,86495.0,0.17356491]
[1731353945111,0.0005501,86513.0,86495.0,0.17356491]
[1731353945358,0.0005501,86513.0,86487.0,0.11994075]
[1731353945571,0.0005501,86513.0,86495.0,0.17356491]
[1731353945749,0.0004901,86513.0,86495.0,0.17356491]
[1731353946107,0.0004301,86513.0,86495.0,0.17356491]
[1731353947307,1.5004301,86513.0,86495.0,0.17356491]
[1731353947718,0.002,86509.0,86487.0,0.11994075]
[1731353947931,0.0004301,86513.0,86495.0,0.17356491]
[1731353948344,1.5004301,86513.0,86495.0,0.17356491]
[1731353948948,0.17850491,86504.0,86486.0,0.17356491]
[1731353949155,0.0024301,86513.0,86496.0,0.17356491]
[1731353949378,0.0004301,86513.0,86487.0,0.29350566]
[1731353949595,1.53407492,86513.0,86487.0,0.29350566]
[1731353949801,1.5,86513.0,86497.0,0.17356491]
[1731353949999,1.5,86513.0,86487.0,0.29350566]
[1731353950925,0.17356491,86506.0,86487.0,0.29350566]
[1731353951126,1.5,86513.0,86487.0,0.29350566]
[1731353951127,1.5,86513.0,86496.0,0.17356491]
[1731353951349,1.5,86513.0,86487.0,0.29350566]
[1731353951795,0.00494,86504.0,86488.0,0.17356491]
[1731353952004,0.12488075,86504.0,86488.0,0.17356491]
[1731353952431,0.1,86511.0,86488.0,0.29350566]
[1731353953062,0.00494,86512.0,86488.0,0.29350566]
[1731353953499,0.17356491,86506.0,86486.0,0.0017018]
[1731353953705,0.17356491,86506.0,86487.0,0.17356491]
[1731353953932,0.17356491,86506.0,86486.0,0.0017018]
[1731353953933,0.17356491,86496.0,86486.0,0.0017018]
[1731353954133,0.0478,86502.0,86487.0,0.17356491]
[1731353954339,0.17356491,86496.0,86486.0,0.0017018]
[1731353954550,0.15401567,86496.0,86486.0,0.0017018]
[1731353954761,0.11994075,86496.0,86486.0,0.0017018]
[1731353955379,0.00494,86490.0,86486.0,0.0017018]
[1731353955604,0.17356491,86487.0,86453.0,0.17356491]
[1731353955829,0.00494,86472.0,86471.0,0.17356491]
[1731353956070,0.00494,86472.0,86462.0,0.17356491]
[1731353956285,0.00494,86474.0,86462.0,0.17356491]
[1731353956489,0.11994075,86474.0,86462.0,0.17356491]
[1731353956702,0.11994075,86474.0,86453.0,0.17356491]
[1731353956901,0.1288,86476.0,86463.0,0.17356491]
[1731353957128,0.1288,86476.0,86464.0,0.11994075]
[1731353957129,0.17356491,86475.0,86464.0,0.11994075]
[1731353957345,1.67356491,86475.0,86464.0,0.11994075]
[1731353957808,0.17356491,86475.0,86464.0,0.11994075]
[1731353958023,0.1288,86476.0,86464.0,0.11994075]
[1731353958024,0.0471,86476.0,86464.0,0.11994075]
[1731353958387,0.0812,86488.0,86465.0,0.17356491]
[1731353958671,0.17356491,86482.0,86466.0,0.11994075]
[1731353958878,0.0486,86490.0,86468.0,0.17356491]
[1731353959045,0.17356491,86483.0,86469.0,0.11994075]
[1731353959289,0.0486,86490.0,86469.0,0.29350566]
[1731353959481,0.17356491,86483.0,86469.0,0.11994075]
[1731353959794,0.0486,86490.0,86469.0,0.11994075]
[1731353959795,0.046589,86490.0,86469.0,0.11994075]
[1731353960213,0.17356491,86483.0,86469.0,0.11994075]
[1731353960431,0.17356491,86482.0,86469.0,0.11994075]
[1731353960645,0.046589,86490.0,86470.0,0.17356491]
[1731353960910,0.17356491,86482.0,86457.0,0.005]
[1731353961146,0.17356491,86482.0,86462.0,0.17356491]
[1731353961358,0.17356491,86481.0,86463.0,0.11994075]
[1731353961578,0.17356491,86480.0,86463.0,0.11994075]
[1731353962251,0.046589,86490.0,86465.0,0.17356491]
[1731353962502,0.046589,86490.0,86453.0,0.17356491]
[1731353962503,0.17356491,86479.0,86466.0,0.11994075]
[1731353962721,0.046589,86490.0,86466.0,0.11994075]
[1731353962940,0.17356491,86483.0,86466.0,0.11994075]
[1731353963166,0.17356491,86483.0,86467.0,0.17356491]
[1731353963396,0.17356491,86483.0,86467.0,0.29350566]
[1731353964492,0.17356491,86483.0,86453.0,0.17356491]
[1731353964493,0.00494,86481.0,86453.0,0.17356491]
[1731353964791,0.00494,86481.0,86462.0,0.17356491]
[1731353964996,0.00494,86481.0,86454.0,0.11994075]
[1731353965670,0.00494,86461.0,86448.0,0.0017024]
[1731353965879,0.0792,86460.0,86455.0,0.17356491]
[1731353966082,0.0792,86460.0,86448.0,0.0017024]
[1731353966235,0.0792,86460.0,86454.0,0.0017018]
[1731353966435,0.00494,86455.0,86454.0,0.0017018]
[1731353966645,0.00494,86455.0,86425.0,0.17356491]
[1731353966646,0.00494,86442.0,86435.0,0.17356491]
[1731353966849,0.15374,86454.0,86435.0,0.17356491]
[1731353967058,0.11994075,86453.0,86435.0,0.17356491]
[1731353967257,0.17356491,86452.0,86435.0,0.17356491]
[1731353967613,0.17356491,86452.0,86420.0,0.05]
[1731353967614,0.00494,86451.0,86426.0,0.17356491]
[1731353967835,0.00494,86443.0,86426.0,0.17356491]
[1731353968269,1.5,86447.0,86426.0,0.17356491]
[1731353968485,0.17850491,86443.0,86426.0,0.17356491]
[1731353968962,0.00494,86425.0,86420.0,0.05]
[1731353969180,0.22488075,86425.0,86420.0,0.05]
[1731353969394,0.21994075,86425.0,86420.0,0.05]
[1731353969608,1.72488075,86425.0,86420.0,0.05]
[1731353970249,1.80648075,86425.0,86420.0,0.05]
[1731353970857,1.81142075,86425.0,86420.0,0.05]
[1731353971063,0.00494,86421.0,86420.0,0.05]
[1731353971343,0.22488075,86421.0,86420.0,0.05]
[1731353972324,0.12488075,86421.0,86420.0,0.05]
[1731353973439,0.1,86424.0,86420.0,0.05]
[1731353973668,0.00494,86422.0,86420.0,0.05]
[1731353974322,1.71064946,86421.0,86420.0,0.05]
[1731353975017,1.71558946,86421.0,86420.0,0.05]
[1731353975248,1.83553021,86421.0,86420.0,0.05]
[1731353975875,1.93753021,86421.0,86420.0,0.05]
[1731353976123,2.19672666,86421.0,86420.0,0.05]
[1731353976562,2.19472666,86421.0,86420.0,0.05]
[1731353976804,1.93553021,86421.0,86420.0,0.05]
[1731353977015,1.71064946,86421.0,86420.0,0.05]
[1731353978111,1.71064946,86421.0,86420.0,0.051703]
[1731353978553,1.91663021,86421.0,86420.0,0.051703]
[1731353979186,1.79668946,86421.0,86420.0,0.051703]
[1731353980343,1.79174946,86421.0,86420.0,0.051703]
[1731353980566,0.03440246,86483.0,86459.0,0.023]
[1731353980830,0.30919645,86460.0,86422.0,0.005]
[1731353981035,0.30919645,86460.0,86420.0,0.17164375]
[1731353981036,0.00494,86457.0,86420.0,0.17164375]
[1731353981253,1.50494,86459.0,86421.0,0.00231408]
[1731353981504,1.50494,86459.0,86420.0,0.17164375]
[1731353981505,0.00494,86459.0,86420.0,0.17164375]
[1731353981735,0.69427971,86448.0,86422.0,0.69427971]
[1731353981944,0.69427971,86448.0,86423.0,0.11994075]
[1731353983194,0.69427971,86437.0,86423.0,0.11994075]
[1731353983406,0.69427971,86448.0,86423.0,0.11994075]
[1731353983407,0.0487,86439.0,86423.0,0.11994075]
[1731353983858,0.69427971,86438.0,86423.0,0.11994075]
[1731353984995,0.69427971,86448.0,86423.0,0.12225493]
[1731353985251,0.69427971,86448.0,86427.0,0.25919645]
[1731353985488,0.69427971,86439.0,86428.0,0.11994075]
[1731353985708,0.17353479,86455.0,86428.0,0.11994075]
[1731353985915,0.17353479,86443.0,86428.0,0.11994075]
[1731353986128,0.17353479,86455.0,86428.0,0.11994075]
[1731353986337,0.17353479,86444.0,86428.0,0.11994075]
[1731353990764,0.17438629,86444.0,86428.0,0.11994075]
[1731353991003,0.17353479,86433.0,86424.0,0.001703]
[1731353991230,0.0008515,86444.0,86429.0,0.11994075]
[1731353991439,0.17353479,86439.0,86429.0,0.11994075]
[1731353992515,1.5,86443.0,86429.0,0.11994075]
[1731353992751,0.17353479,86442.0,86429.0,0.11994075]
[1731353995312,1.67353479,86442.0,86429.0,0.11994075]
[1731353995524,1.66353479,86442.0,86429.0,0.11994075]
[1731353996388,1.5,86442.0,86429.0,0.11994075]
[1731353996592,0.16353479,86441.0,86429.0,0.11994075]
[1731353997695,0.17353479,86441.0,86429.0,0.11994075]
[1731353998957,1.5,86440.0,86429.0,0.11994075]
[1731353999659,0.17353479,86439.0,86429.0,0.11994075]
[1731353999885,0.0008515,86444.0,86439.0,0.25919645]
[1731354000099,0.17353479,86443.0,86442.0,0.11994075]
[1731354000511,0.0008515,86444.0,86442.0,0.11994075]
[1731354000746,0.0008515,86444.0,86422.0,0.005]
[1731354000747,0.0008515,86444.0,86443.0,0.15525398]
[1731354001012,0.0008515,86444.0,86443.0,0.15725398]
[1731354001242,0.0008515,86444.0,86443.0,0.15525398]
[1731354001477,0.17353479,86466.0,86459.0,0.25919645]
[1731354001714,0.17353479,86466.0,86459.0,0.24794075]
[1731354001938,0.0477,86489.0,86459.0,0.12494075]
[1731354002172,0.0477,86489.0,86459.0,0.15294075]
[1731354002602,0.17353479,86493.0,86459.0,0.25494075]
[1731354002829,0.17353479,86493.0,86473.0,0.25919645]
[1731354003056,0.17353479,86493.0,86474.0,0.11994075]
[1731354003531,0.17353479,86484.0,86477.0,0.11994075]
[1731354003746,0.17353479,86484.0,86483.0,0.11994075]
[1731354004204,0.17353479,86493.0,86483.0,0.11994075]
[1731354004885,0.17353479,86484.0,86483.0,0.11994075]
[1731354005112,0.0761,86503.0,86483.0,0.11994075]
[1731354005319,0.0455,86505.0,86485.0,0.11994075]
[1731354005539,0.24993479,86517.0,86485.0,0.11994075]
[1731354005756,0.24993479,86517.0,86485.0,0.12494075]
[1731354005975,0.17353479,86517.0,86496.0,0.023]
[1731354006217,0.17353479,86517.0,86496.0,0.28219645]
[1731354006218,0.17353479,86497.0,86496.0,0.28219645]
[1731354006426,0.17353479,86497.0,86484.0,0.005]
[1731354006660,0.02953139,86514.0,86477.0,0.005]
[1731354006885,0.17290479,86506.0,86478.0,0.0023123]
[1731354007107,0.17353479,86497.0,86473.0,0.005]
[1731354007394,0.17353479,86497.0,86469.0,0.005]
[1731354007631,0.0778,86507.0,86468.0,0.1]
[1731354007632,0.17353479,86496.0,86481.0,0.11994075]
[1731354007851,0.17353479,86487.0,86481.0,0.11994075]
[1731354008069,0.17353479,86496.0,86481.0,0.11994075]
[1731354008284,1.5,86495.0,86481.0,0.11994075]
[1731354008746,0.0485,86491.0,86481.0,0.11994075]
[1731354008963,0.0485,86491.0,86452.0,0.17353479]
[1731354008964,0.17353479,86484.0,86452.0,0.17353479]
[1731354009181,0.16844075,86491.0,86452.0,0.17353479]
[1731354009182,0.00494,86487.0,86461.0,0.17353479]
[1731354009388,0.00494,86487.0,86440.0,0.005]
[1731354009389,0.17353479,86480.0,86437.0,0.005]
[1731354009615,0.0485,86468.0,86442.0,0.11994075]
[1731354010281,1.5,86455.0,86442.0,0.11994075]
[1731354010728,1.5,86455.0,86431.0,0.17353479]
[1731354010729,0.0778,86454.0,86431.0,0.17353479]
[1731354010939,0.0778,86454.0,86432.0,0.11994075]
[1731354011168,0.17353479,86452.0,86432.0,0.11994075]
[1731354011379,0.0778,86454.0,86433.0,0.17353479]
[1731354011631,0.17353479,86452.0,86434.0,0.11994075]
[1731354012292,0.17353479,86452.0,86424.0,0.001703]
[1731354012293,0.0473,86442.0,86424.0,0.001703]
[1731354012524,0.0473,86442.0,86425.0,0.11994075]
[1731354012714,0.17353479,86441.0,86425.0,0.11994075]
[1731354014189,0.17353479,86432.0,86424.0,0.001703]
[1731354014400,0.0788,86438.0,86424.0,0.001703]
[1731354014608,0.25233479,86438.0,86424.0,0.001703]
[1731354014835,0.00494,86435.0,86424.0,0.001703]
[1731354015279,0.046,86433.0,86424.0,0.001703]
[1731354015486,0.00494,86431.0,86424.0,0.001703]
[1731354015716,0.00494,86431.0,86429.0,0.0017022]
[1731354015931,0.00494,86429.0,86424.0,0.001703]
[1731354016173,0.08734,86425.0,86424.0,0.001703]
[1731354016400,0.20728075,86425.0,86424.0,0.001703]
[1731354016623,0.30728075,86425.0,86424.0,0.001703]
[1731354017289,1.80728075,86425.0,86424.0,0.001703]
[1731354017909,0.26613645,86421.0,86420.0,0.051703]
[1731354018111,0.26413645,86421.0,86420.0,0.051703]
[1731354018570,1.9890172,86421.0,86420.0,0.051703]
[1731354019051,0.00494,86408.0,86375.0,0.0017018]
[1731354019273,0.25919645,86406.0,86375.0,0.0017018]
[1731354019501,0.00494,86405.0,86375.0,0.0017018]
[1731354019753,1.5,86404.0,86375.0,0.0017018]
[1731354020414,1.5,86404.0,86378.0,0.00231526]
[1731354021509,0.17353479,86400.0,86377.0,0.0017018]
[1731354021739,1.5,86404.0,86378.0,0.17353479]
[1731354023096,0.01208249,86409.0,86379.0,0.00231518]
[1731354023529,0.1,86411.0,86379.0,0.00231518]
[1731354023530,1.6,86411.0,86379.0,0.00231518]
[1731354024371,0.17353479,86403.0,86377.0,0.0017018]
[1731354024598,0.25919645,86407.0,86379.0,0.17353479]
[1731354024811,0.00494,86409.0,86379.0,0.17353479]
[1731354025682,0.00494,86401.0,86377.0,0.0017018]
[1731354025912,0.00494,86389.0,86377.0,0.0017018]
[1731354026113,0.10694,86389.0,86377.0,0.0017018]
[1731354026318,0.15788,86389.0,86377.0,0.0017018]
[1731354026583,0.15588,86389.0,86377.0,0.0017018]
[1731354027011,0.15788,86389.0,86377.0,0.0017018]
[1731354027222,1.65588,86389.0,86377.0,0.0017018]
[1731354027930,1.77582075,86389.0,86377.0,0.0017018]
[1731354029242,0.41657645,86378.0,86377.0,0.0017018]
[1731354029475,0.6372172,86378.0,86377.0,0.0017018]
[1731354029950,2.1122172,86378.0,86377.0,0.0017018]
[1731354030176,2.1122172,86378.0,86361.0,0.0016996]
[1731354030177,0.00494,86368.0,86361.0,0.0016996]
[1731354030444,0.22488075,86368.0,86361.0,0.0016996]
[1731354030649,0.00494,86362.0,86361.0,0.0016996]
[1731354030861,1.73182075,86362.0,86361.0,0.0016996]
[1731354031098,0.00494,86345.0,86298.0,0.005]
[1731354031327,0.00494,86345.0,86285.0,0.25919645]
[1731354031328,0.00494,86343.0,86335.0,0.17353479]
[1731354031560,0.00988,86343.0,86318.0,0.17353479]
[1731354031766,1.61188,86343.0,86318.0,0.17353479]
[1731354031969,1.60988,86343.0,86318.0,0.17353479]
[1731354032219,0.00494,86341.0,86318.0,0.17353479]
[1731354032430,1.7264,86343.0,86252.0,0.0155]
[1731354032431,0.25919645,86319.0,86308.0,0.17353479]
[1731354032657,0.0497,86324.0,86313.0,0.00610968]
[1731354032897,0.0767,86320.0,86313.0,0.00610968]
[1731354033110,0.00494,86317.0,86286.0,0.17353479]
[1731354033327,0.00494,86314.0,86286.0,0.17353479]
[1731354033532,0.12688075,86314.0,86286.0,0.17353479]
[1731354033732,0.26413645,86319.0,86287.0,0.17353479]
[1731354033733,0.27952075,86313.0,86287.0,0.17353479]
[1731354033960,0.49547645,86302.0,86280.0,0.001703]
[1731354034187,0.6174172,86302.0,86288.0,0.17353479]
[1731354034406,0.6174172,86302.0,86280.0,0.001703]
[1731354034821,0.67715892,86302.0,86280.0,0.001703]
[1731354035275,0.67915892,86302.0,86280.0,0.001703]
[1731354035501,0.00494,86293.0,86280.0,0.001703]
[1731354035907,0.00494,86291.0,86281.0,0.00558295]
[1731354036152,0.00494,86299.0,86281.0,0.00558295]
[1731354036361,0.17353479,86295.0,86270.0,0.01574875]
[1731354036599,0.17353479,86295.0,86271.0,0.11994075]
[1731354036871,0.17353479,86295.0,86271.0,0.12499383]
[1731354037102,0.17353479,86294.0,86273.0,0.023]
[1731354037329,0.17353479,86294.0,86275.0,0.023]
[1731354037572,0.17353479,86294.0,86277.0,0.023]
[1731354037778,0.17353479,86294.0,86276.0,0.11994075]
[1731354037779,0.17353479,86294.0,86279.0,0.023]
[1731354037984,0.17353479,86294.0,86281.0,0.023]
[1731354038433,0.1264,86302.0,86283.0,0.023]
[1731354038663,0.17353479,86296.0,86285.0,0.023]
[1731354038868,0.17353479,86296.0,86287.0,0.023]
[1731354039085,0.17353479,86296.0,86286.0,0.11994075]
[1731354039086,0.17353479,86288.0,86286.0,0.00498941]
[1731354039303,0.17353479,86288.0,86253.0,0.002]
[1731354039304,0.0772,86315.0,86288.0,0.023]
[1731354039521,0.17353479,86299.0,86290.0,0.023]
[1731354039730,0.17353479,86299.0,86292.0,0.023]
[1731354039944,0.17353479,86299.0,86294.0,0.023]
[1731354040148,0.0772,86315.0,86296.0,0.023]
[1731354040576,0.0772,86315.0,86297.0,0.00497599]
[1731354041667,0.0772,86315.0,86298.0,0.14294075]
[1731354041898,0.17353479,86309.0,86298.0,0.14791433]
[1731354042109,0.0772,86315.0,86298.0,0.13791433]
[1731354042327,0.17353479,86309.0,86298.0,0.13791433]
[1731354042528,0.17353479,86309.0,86298.0,0.02797358]
[1731354042980,0.17353479,86309.0,86298.0,0.023]
[1731354043400,0.17353479,86309.0,86282.0,0.005]
[1731354043608,0.17353479,86309.0,86284.0,0.123]
[1731354043822,0.17353479,86309.0,86286.0,0.123]
[1731354044023,0.0772,86315.0,86286.0,0.123]
[1731354044024,0.0772,86315.0,86288.0,0.29653479]
[1731354044234,0.17353479,86308.0,86289.0,0.12225817]
[1731354044438,0.17353479,86308.0,86290.0,0.123]
[1731354044647,0.17353479,86308.0,86292.0,0.023]
[1731354044864,0.0772,86315.0,86294.0,0.023]
[1731354045088,0.0772,86315.0,86295.0,0.11994075]
[1731354045089,0.17353479,86307.0,86295.0,0.11994075]
[1731354045293,0.17353479,86307.0,86296.0,0.023]
[1731354045781,0.0772,86315.0,86297.0,0.00497147]
[1731354046000,0.17353479,86309.0,86296.0,0.023]
[1731354046228,0.0772,86315.0,86297.0,0.11994075]
[1731354046443,0.0772,86315.0,86298.0,0.00498832]
[1731354046444,0.17353479,86309.0,86298.0,0.00498832]
[1731354046660,0.16353479,86309.0,86299.0,0.11994075]
[1731354046920,0.17353479,86318.0,86300.0,0.00496906]
[1731354047136,0.17353479,86318.0,86301.0,0.11994075]
[1731354047357,0.17353479,86318.0,86301.0,0.12490948]
[1731354048213,0.17353479,86309.0,86301.0,0.00496873]
[1731354048410,0.17353479,86318.0,86301.0,0.00496873]
[1731354048644,0.43767124,86327.0,86292.0,0.1]
[1731354048645,0.17353479,86317.0,86293.0,0.023]
[1731354048842,0.17353479,86327.0,86302.0,0.11994075]
[1731354049049,0.17353479,86306.0,86297.0,0.0008]
[1731354049294,0.17353479,86315.0,86297.0,0.0008]
[1731354049500,0.18986712,86314.0,86298.0,0.00494372]
[1731354049730,0.18986712,86314.0,86297.0,0.0008]
[1731354050139,0.082,86304.0,86297.0,0.0008]
[1731354050571,0.00494,86302.0,86298.0,0.000852]
[1731354050817,0.11994075,86301.0,86298.0,0.000852]
[1731354051060,0.17847479,86299.0,86298.0,0.000852]
[1731354051306,0.00494,86287.0,86281.0,0.000851]
[1731354051541,0.26413645,86284.0,86281.0,0.000851]
[1731354051775,0.11994075,86283.0,86281.0,0.000851]
[1731354052235,1.5,86282.0,86281.0,0.000851]
[1731354053327,1.5814,86282.0,86281.0,0.000851]
[1731354053535,1.70628075,86282.0,86281.0,0.000851]
[1731354053738,1.75178075,86282.0,86281.0,0.000851]
[1731354054586,1.74684075,86282.0,86281.0,0.000851]
[1731354054815,1.6269,86282.0,86281.0,0.000851]
[1731354055049,0.1272,86282.0,86281.0,0.000851]
[1731354056156,0.17353479,86297.0,86281.0,0.000851]
[1731354056350,0.17353479,86288.0,86281.0,0.000851]
[1731354056570,0.17353479,86297.0,86281.0,0.000851]
[1731354057468,0.17353479,86286.0,86281.0,0.000851]
[1731354057698,0.00494,86294.0,86281.0,0.000851]
[1731354057904,0.17677787,86296.0,86281.0,0.000851]
[1731354057905,0.17353479,86296.0,86281.0,0.000851]
[1731354058878,1.5,86297.0,86281.0,0.000851]
[1731354059093,0.0817,86311.0,86283.0,0.023]
[1731354059302,0.17353479,86295.0,86285.0,0.023]
[1731354059623,0.17353479,86295.0,86287.0,0.023]
[1731354059852,0.17353479,86295.0,86288.0,0.11994075]
[1731354060057,1.67353479,86306.0,86288.0,0.12443742]
[1731354060281,0.17353479,86297.0,86288.0,0.11994075]
[1731354060503,1.67353479,86306.0,86281.0,0.000851]
[1731354060504,0.11994075,86305.0,86281.0,0.000851]
[1731354060709,0.11994075,86305.0,86289.0,0.00449908]
[1731354060910,0.17353479,86305.0,86284.0,0.023]
[1731354061154,0.17353479,86305.0,86282.0,0.11994075]
[1731354061359,0.17353479,86305.0,86281.0,0.000851]
[1731354061360,0.12488075,86304.0,86281.0,0.000851]
[1731354061791,0.17353479,86305.0,86283.0,0.17353479]
[1731354061997,0.17353479,86296.0,86284.0,0.14294075]
[1731354062243,0.17353479,86305.0,86284.0,0.12294075]
[1731354062473,0.17353479,86305.0,86285.0,0.0045063]
[1731354062691,0.17353479,86296.0,86281.0,0.000851]
[1731354062898,0.049,86288.0,86281.0,0.000851]
[1731354063145,0.0811,86287.0,86281.0,0.000851]
[1731354063382,0.20598075,86287.0,86281.0,0.000851]
[1731354063611,0.00494,86285.0,86281.0,0.000851]
[1731354063838,0.11994075,86284.0,86281.0,0.000851]
[1731354064476,0.00494,86282.0,86281.0,0.000851]
[1731354064701,0.12488075,86282.0,86281.0,0.000851]
[1731354064932,0.22488075,86282.0,86281.0,0.000851]
[1731354065145,0.002,86271.0,86270.0,0.01574875]
[1731354065382,0.12688075,86271.0,86270.0,0.01574875]
[1731354065587,0.25048075,86271.0,86270.0,0.01574875]
[1731354065789,0.24848075,86271.0,86270.0,0.01574875]
[1731354067301,0.00494,86263.0,86238.0,0.17353479]
[1731354067500,0.24354075,86271.0,86249.0,0.17353479]
[1731354067501,0.12488075,86262.0,86249.0,0.17353479]
[1731354067732,0.12488075,86262.0,86239.0,0.00417633]
[1731354067956,0.12488075,86262.0,86250.0,0.0041474]
[1731354068183,0.12488075,86262.0,86229.0,7e-05]
[1731354068184,0.17353479,86259.0,86229.0,7e-05]
[1731354068422,0.00494,86260.0,86230.0,0.29347554]
[1731354068423,0.1497823,86258.0,86230.0,0.29347554]
[1731354068645,1.67847479,86255.0,86229.0,7e-05]
[1731354068869,1.67847479,86255.0,86231.0,0.00418357]
[1731354068870,0.11994075,86254.0,86231.0,0.00418357]
[1731354069081,0.11994075,86253.0,86229.0,7e-05]
[1731354069304,0.17353479,86246.0,86229.0,7e-05]
[1731354069511,0.0456,86245.0,86229.0,7e-05]
[1731354070139,0.0498,86261.0,86230.0,0.11994075]
[1731354070381,0.17353479,86245.0,86230.0,0.11994075]
[1731354070785,0.17353479,86245.0,86231.0,0.00415223]
[1731354070988,0.17353479,86245.0,86232.0,0.11994075]
[1731354071448,0.17353479,86245.0,86233.0,0.00431858]
[1731354071889,1.79347554,86255.0,86229.0,7e-05]
[1731354072119,1.79347554,86255.0,86230.0,0.11994075]
[1731354072120,1.67302379,86255.0,86230.0,0.11994075]
[1731354072330,1.67302379,86255.0,86231.0,0.023]
[1731354072331,0.17353479,86246.0,86231.0,0.023]
[1731354072558,0.17353479,86255.0,86232.0,0.11994075]
[1731354072799,0.17353479,86255.0,86232.0,0.12428097]
[1731354073203,0.17353479,86255.0,86233.0,0.12531906]
[1731354073450,0.17353479,86255.0,86234.0,0.11994075]
[1731354073662,0.17353479,86246.0,86234.0,0.00435709]
[1731354073938,0.17353479,86255.0,86232.0,0.0008524]
[1731354074378,1.5,86254.0,86233.0,0.00437885]
[1731354074813,1.5,86254.0,86232.0,0.0008524]
[1731354075269,1.5,86254.0,86233.0,0.11994075]
[1731354075476,0.17353479,86255.0,86233.0,0.11994075]
[1731354075680,0.17353479,86255.0,86234.0,0.00437594]
[1731354075681,0.17353479,86246.0,86234.0,0.00437594]
[1731354075889,0.17353479,86255.0,86235.0,0.11994075]
[1731354076308,0.17353479,86246.0,86232.0,0.0008524]
[1731354076603,0.17353479,86237.0,86232.0,0.0008524]
[1731354076833,0.25919645,86242.0,86232.0,0.0008524]
[1731354076834,0.25919645,86233.0,86232.0,0.0008524]
[1731354077046,0.21188908,86236.0,86232.0,0.0008524]
[1731354077047,0.05234,86236.0,86232.0,0.0008524]
[1731354077284,0.3791372,86233.0,86232.0,0.0008524]
[1731354077512,0.37883358,86233.0,86232.0,0.0008524]
[1731354077992,0.47883358,86233.0,86232.0,0.0008524]
[1731354078408,0.4791372,86233.0,86232.0,0.0008524]
[1731354078831,1.9791372,86233.0,86232.0,0.0008524]
[1731354079058,1.71994075,86233.0,86232.0,0.0008524]
[1731354079285,0.0474,86236.0,86232.0,0.0008524]
[1731354079520,0.0813,86238.0,86232.0,0.0008524]
[1731354079733,0.17353479,86237.0,86232.0,0.0008524]
[1731354079950,0.0498,86250.0,86232.0,0.0008524]
[1731354080161,0.17353479,86246.0,86233.0,0.11994075]
[1731354080392,0.17353479,86246.0,86232.0,0.0008524]
[1731354080393,0.02153121,86245.0,86232.0,0.0008524]
[1731354080618,0.195066,86245.0,86234.0,0.00333016]
[1731354080866,0.02153121,86244.0,86232.0,0.0008524]
[1731354081085,0.02144921,86243.0,86234.0,0.11994075]
[1731354081318,0.17353479,86254.0,86235.0,0.11994075]
[1731354081537,0.17353479,86245.0,86235.0,0.12324683]
[1731354081769,0.17353479,86254.0,86235.0,0.12324683]
[1731354081770,0.17353479,86244.0,86235.0,0.11994075]
[1731354081978,0.17353479,86254.0,86236.0,0.00346833]
[1731354081979,0.17353479,86243.0,86236.0,0.00346833]
[1731354082184,0.17353479,86254.0,86236.0,0.00346833]
[1731354082388,0.21533875,86254.0,86236.0,0.00346833]
[1731354082599,0.21533875,86254.0,86232.0,0.0008524]
[1731354083233,0.17353479,86254.0,86232.0,0.0008524]
[1731354083652,0.17353479,86253.0,86233.0,0.11994075]
[1731354084245,0.17353479,86244.0,86232.0,0.0008524]
[1731354084508,0.03445653,86252.0,86233.0,0.17353479]
[1731354084713,0.17353479,86243.0,86232.0,0.12079315]
[1731354084921,1.5,86251.0,86234.0,0.003142]
[1731354085331,1.5,86251.0,86232.0,0.12079315]
[1731354085332,0.03445653,86250.0,86232.0,0.12079315]
[1731354085543,0.03445653,86249.0,86235.0,0.11994075]
[1731354085765,0.03445653,86248.0,86235.0,0.11994075]
[1731354085969,0.03445653,86247.0,86236.0,0.00312995]
[1731354086186,0.17353479,86250.0,86237.0,0.11994075]
[1731354086406,0.17199598,86250.0,86237.0,0.11994075]
[1731354086611,0.049,86264.0,86238.0,0.00311912]
[1731354086833,0.17353479,86257.0,86240.0,0.023]
[1731354087053,0.16853479,86256.0,86242.0,0.1]
[1731354087271,0.16853479,86256.0,86241.0,0.11994075]
[1731354087272,0.08114,86274.0,86243.0,0.11994075]
[1731354087484,0.17353479,86255.0,86243.0,0.12301538]
[1731354087975,0.19088827,86266.0,86243.0,0.12301538]
[1731354087976,0.17353479,86254.0,86243.0,0.12301538]
[1731354088178,0.17353479,86254.0,86243.0,0.00307463]
[1731354088390,0.19088827,86266.0,86231.0,0.005]
[1731354088391,0.17353479,86266.0,86231.0,0.005]
[1731354088595,0.17353479,86253.0,86238.0,0.023]
[1731354088821,0.17353479,86257.0,86239.0,0.11994075]
[1731354089081,0.17353479,86257.0,86240.0,0.1]
[1731354089082,0.17257718,86257.0,86240.0,0.1]
[1731354089313,0.17257718,86257.0,86241.0,0.11994075]
[1731354089510,0.17257718,86257.0,86241.0,0.12302261]
[1731354090048,1.5,86265.0,86241.0,0.12302261]
[1731354090244,0.17353479,86264.0,86245.0,0.028]
[1731354090467,0.17353479,86264.0,86246.0,0.12302743]
[1731354090686,0.17353479,86255.0,86231.0,0.005]
[1731354090888,1.5,86265.0,86239.0,0.1]
[1731354091085,0.17353479,86255.0,86241.0,0.1]
[1731354091287,0.17353479,86264.0,86242.0,0.12301538]
[1731354091486,0.17353479,86254.0,86242.0,0.11994075]
[1731354091796,0.17353479,86264.0,86242.0,0.11994075]
[1731354091797,0.17353479,86264.0,86243.0,0.00306981]
[1731354092021,0.17353479,86255.0,86243.0,0.00306981]